fUSD/lending_fUSD_20240616
["ID","MTS","AMOUNT","RATE_DAILY","PERIOD"]
[329666293,1718554284670,-834.00313039,0.00025,2]
[329666294,1718554284683,-931.60424191,0.00027205,2]
[329666295,1718554284708,-1144.00909017,0.0002776,2]
[329666296,1718554284721,-543.38783253,0.0002776,2]
[329666297,1718554284732,-17528.79595493,0.00027762,5]
[329666298,1718554284746,-183263.59189043,0.00027762,5]
[329666299,1718554284764,-4665.94653909,0.00027762,5]
[329666300,1718554284781,-378.25350976,0.00027762,5]
[329666301,1718554284816,-269.06781082,0.00027762,5]
[329666302,1718554284837,-1508.12163602,0.00027762,5]
[329666303,1718554284885,-364.32878994,0.00027762,5]
[329666312,1718554520320,-100000.0,0.00017259,2]
[329666313,1718554539233,-100000.0,0.00017259,2]
[329666340,1718555357225,-532.05845602,0.00016406,2]
[329666341,1718555357266,-258.37137548,0.00016406,2]
[329666342,1718555357303,-2124.7137685,0.00016406,2]
[329666355,1718555434101,-646.43853102,0.00016204,2]
[329666356,1718555434113,-538.33838683,0.00016205,2]
[329666357,1718555434139,-1797.58231532,0.00016205,2]
[329666359,1718555434153,-309.55731741,0.00016206,2]
[329666361,1718555434166,-158.71096478,0.00016304,2]
[329666363,1718555434183,-664.31741175,0.00016304,2]
[329666365,1718555434221,-909.3594811,0.00016304,2]
[329666367,1718555434243,-799.49313575,0.00016304,2]
[329666369,1718555434302,-169.27557674,0.00016306,2]
[329666370,1718555434373,-204.90898564,0.00016406,2]
[329666371,1718555434401,-155.0,0.00016406,2]
[329666372,1718555434428,-1461.66289095,0.00016406,2]
[329666373,1718555434463,-12989.91284197,0.00016406,2]
[329666374,1718555434946,-436.8500004,0.00016406,2]
[329666375,1718555434971,-264.82796935,0.00016406,2]
[329666376,1718555434986,-87679.31149105,0.00016406,2]
[329666380,1718555435806,-3955.25279385,0.00016406,2]
[329666381,1718555435828,-258.8378116,0.00016406,2]
[329666382,1718555435934,-34048.9068968,0.00016406,2]
[329666383,1718555435951,-1364.6376142,0.00016406,2]
[329666384,1718555435967,-19793.50088991,0.00016406,2]
[329666385,1718555435979,-20286.29635735,0.00016406,2]
[329666386,1718555435998,-562.856829,0.00016412,2]
[329666387,1718555436036,-300.0,0.00017165,2]
[329666388,1718555436060,-150.0,0.00017165,2]
[329666389,1718555436112,-2351.91157413,0.00017166,2]
[329666390,1718555436127,-13317.241937,0.00017248,2]
[329666391,1718555436141,-3150.41,0.00017248,2]
[329666392,1718555436157,-73241.42368535,0.00017258,2]
[329666393,1718555436169,-499.99,0.00017258,2]
[329666394,1718555436187,-375.99192575,0.00017259,2]
[329666395,1718555436200,-299.79059261,0.00017259,2]
[329666396,1718555436212,-150.99,0.00017808,2]
[329666397,1718555436248,-420.0,0.00018745,2]
[329666398,1718555436283,-194.52079745,0.00019178,2]
[329666399,1718555436297,-215.98,0.00019579,2]
[329666400,1718555436330,-23890.0,0.00019787,2]
[329666401,1718555436342,-250.0,0.00020366,2]
[329666403,1718555436353,-3898.38718173,0.00020469,2]
[329666405,1718555436368,-587.0,0.0002047,2]
[329666407,1718555436382,-472.84,0.00022161,2]
[329666408,1718555436408,-250.0,0.00022275,2]
[329666410,1718555436425,-823.0,0.00022355,2]
[329666412,1718555436440,-152.37,0.00022995,2]
[329666414,1718555436452,-741.17,0.00023503,2]
[329666416,1718555436464,-1340.8,0.00023525,2]
[329666417,1718555436487,-9328.12180017,0.00023534,2]
[329666418,1718555436498,-202.011918,0.000237,2]
[329666419,1718555436508,-150.0,0.00023783,2]
[329666420,1718555436519,-250.0,0.00023822,2]
[329666421,1718555436535,-180.0,0.00024341,2]
[329666422,1718555436546,-150.87,0.00024384,2]
[329666423,1718555436559,-153.2,0.00024384,2]
[329666424,1718555436570,-1048.0,0.00024412,2]
[329666425,1718555436582,-472.84,0.00024425,2]
[329666426,1718555436595,-5000.0,0.00024522,2]
[329666427,1718555436611,-382.48,0.00024552,2]
[329666428,1718555436622,-424.17889072,0.00024984,2]
[329666429,1718555436640,-297.15495407,0.00025,2]
[329666430,1718555436655,-630.41108301,0.00025,2]
[329666431,1718555436666,-1983.21942943,0.00025,2]
[329666432,1718555436694,-707.39834978,0.00025006,2]
[329666433,1718555436715,-7432.2410971,0.00025007,2]
[329666434,1718555436749,-155.72,0.00025035,2]
[329666435,1718555436796,-150.0,0.00025216,2]
[329666436,1718555436808,-172.0,0.000253,2]
[329666437,1718555436820,-880.0,0.00025635,2]
[329666438,1718555436844,-200.0,0.000257,2]
[329666439,1718555436859,-500.0,0.00025903,2]
[329666440,1718555436875,-500.0,0.00025912,2]
[329666441,1718555436911,-500.0,0.00025921,2]
[329666442,1718555436990,-500.0,0.0002593,2]
[329666443,1718555437010,-500.0,0.00025938,2]
[329666444,1718555437026,-500.0,0.00025947,2]
[329666445,1718555437054,-500.0,0.00025956,2]
[329666446,1718555437068,-500.0,0.00025965,2]
[329666447,1718555437079,-500.0,0.00025974,2]
[329666448,1718555437100,-500.0,0.00025982,2]
[329666449,1718555437125,-1192.11835408,0.00026,2]
[329666450,1718555437156,-258.37137548,0.00026242,2]
[329666451,1718555437248,-741.17,0.00026243,2]
[329666452,1718555437259,-1668.021,0.00026407,2]
[329666453,1718555437272,-4873.33,0.00026583,2]
[329666454,1718555437287,-472.84,0.00026689,2]
[329666455,1718555437346,-1278.5,0.00026822,2]
[329666456,1718555437405,-4988.01,0.00026971,2]
[329666457,1718555437451,-1340.8,0.00026995,2]
[329666458,1718555437481,-1340.8,0.00026995,2]
[329666459,1718555437510,-17812.44666351,0.00027004,2]
[329666460,1718555437552,-9123.9369,0.00027005,2]
[329666461,1718555437564,-57642.5305,0.00027005,2]
[329666462,1718555437634,-1000.0,0.00027005,2]
[329666463,1718555437657,-500.0,0.00027083,2]
[329666464,1718555437681,-2014.98329277,0.000272,2]
[329666465,1718555437691,-802.68140763,0.00027205,2]
[329666466,1718555437716,-840.41331475,0.00027397,2]
[329666467,1718555437769,-500.0,0.00027397,8]
[329666468,1718555437808,-500.0,0.00027397,8]
[329666469,1718555437823,-500.0,0.00027397,8]
[329666470,1718555437834,-500.0,0.00027397,8]
[329666471,1718555437849,-159.71,0.00027397,2]
[329666472,1718555437863,-150.0,0.00027397,2]
[329666473,1718555437875,-2500.0,0.000274,2]
[329666474,1718555437887,-1000.0,0.000274,2]
[329666475,1718555437913,-4834.8,0.00027407,2]
[329666476,1718555437939,-1500.0,0.00027456,2]
[329666477,1718555437952,-1500.0,0.00027459,2]
[329666478,1718555437967,-598.03532462,0.00027483,3]
[329666479,1718555437990,-1500.0,0.00027489,2]
[329666480,1718555438009,-150.0,0.00027499,2]
[329666481,1718555438026,-300.0,0.000275,2]
[329666482,1718555438076,-1500.0,0.00027507,2]
[329666483,1718555438092,-1500.0,0.00027546,2]
[329666484,1718555438116,-1265.83337706,0.00027555,2]
[329666485,1718555438132,-150.0,0.00027558,2]
[329666486,1718555438145,-302.23252059,0.00027566,2]
[329666487,1718555438156,-7139.30207409,0.000276,2]
[329666552,1718555440319,-982.38686167,0.00027,2]
[329666554,1718555440343,-1979.15848365,0.00027,2]
[329666557,1718555440394,-500.6964493,0.00027,2]
[329666575,1718555441046,-3200.55070996,0.00027,2]
[329666577,1718555441092,-11149.65415893,0.00027,2]
[329666580,1718555441120,-6392.20870816,0.000276,2]
[329666583,1718555441134,-1377.0,0.000276,2]
[329666585,1718555441158,-150.0,0.00027607,2]
[329666586,1718555441174,-155.0,0.00027621,2]
[329666588,1718555441186,-150.0,0.00027646,2]
[329666589,1718555441201,-7500.0,0.00027651,2]
[329666591,1718555441212,-1340.8,0.00027651,2]
[329666592,1718555441227,-500.0,0.0002766,8]
[329666596,1718555441284,-500.0,0.0002766,8]
[329666600,1718555441356,-500.0,0.0002766,8]
[329666601,1718555441381,-500.0,0.0002766,8]
[329666603,1718555441420,-291.2191708,0.0002766,8]
[329666605,1718555441449,-500.0,0.0002766,8]
[329666607,1718555441485,-500.0,0.0002766,8]
[329666609,1718555441505,-500.0,0.0002766,8]
[329666611,1718555441521,-500.0,0.0002766,8]
[329666614,1718555441552,-500.0,0.0002766,8]
[329666615,1718555441565,-181.16,0.0002766,8]
[329666617,1718555441618,-500.0,0.00027661,8]
[329666622,1718555441698,-181.71,0.00027661,8]
[329666624,1718555441731,-500.0,0.00027661,8]
[329666627,1718555441749,-446.3,0.00027661,8]
[329666630,1718555441796,-500.0,0.00027661,8]
[329666632,1718555441810,-513.16,0.00027661,8]
[329666634,1718555441822,-500.0,0.00027661,8]
[329666637,1718555441874,-500.0,0.00027661,8]
[329666639,1718555441886,-520.5,0.00027661,8]
[329666641,1718555441913,-520.5,0.00027661,8]
[329666643,1718555441929,-500.0,0.00027661,8]
[329666646,1718555441998,-500.0,0.00027661,8]
[329666647,1718555442043,-500.0,0.00027661,8]
[329666648,1718555442081,-500.0,0.00027661,8]
[329666649,1718555442171,-500.0,0.00027661,8]
[329666650,1718555442210,-500.0,0.00027661,8]
[329666651,1718555442256,-586.23,0.00027661,8]
[329666652,1718555442286,-4328.7746,0.00027661,2]
[329666653,1718555442330,-174.47135579,0.00027662,2]
[329666654,1718555442342,-226.82346678,0.00027662,2]
[329666655,1718555442388,-219.73,0.00027671,3]
[329666656,1718555442404,-150.0,0.00027674,2]
[329666657,1718555442421,-1500.0,0.0002769,2]
[329666658,1718555442458,-2000.0,0.000277,2]
[329666659,1718555442480,-2000.0,0.000277,2]
[329666660,1718555442500,-291.0,0.000277,2]
[329666661,1718555442512,-160.0,0.000277,2]
[329666662,1718555442541,-736.24740776,0.000277,2]
[329666663,1718555442555,-2000.0,0.000277,2]
[329666664,1718555442570,-200.0,0.000277,2]
[329666665,1718555442634,-150.0,0.000277,5]
[329666666,1718555442647,-1500.0,0.00027739,2]
[329666667,1718555442658,-1340.8,0.00027741,2]
[329666668,1718555442670,-150.0,0.00027746,2]
[329666669,1718555442681,-500.0,0.0002775,8]
[329666670,1718555442697,-388.46029413,0.0002775,8]
[329666671,1718555442709,-500.0,0.0002775,8]
[329666672,1718555442720,-500.0,0.0002775,8]
[329666673,1718555442740,-500.0,0.0002775,8]
[329666674,1718555442759,-377.95,0.0002775,8]
[329666675,1718555442780,-500.0,0.0002775,8]
[329666676,1718555442793,-500.0,0.0002775,8]
[329666677,1718555442806,-500.0,0.0002775,8]
[329666678,1718555442825,-500.0,0.0002775,8]
[329666679,1718555442837,-195.25970446,0.0002775,8]
[329666680,1718555442882,-500.0,0.0002775,8]
[329666682,1718555442904,-188.59,0.0002775,8]
[329666685,1718555442927,-279.44,0.0002775,8]
[329666687,1718555442945,-500.0,0.0002775,8]
[329666689,1718555442958,-500.0,0.0002775,8]
[329666691,1718555442974,-234.51,0.0002775,8]
[329666694,1718555443009,-500.0,0.0002775,8]
[329666696,1718555443060,-500.0,0.0002775,8]
[329666698,1718555443081,-500.0,0.0002775,8]
[329666699,1718555443098,-500.0,0.0002775,8]
[329666701,1718555443112,-641.08583919,0.0002775,8]
[329666703,1718555443123,-500.0,0.0002775,8]
[329666706,1718555443139,-500.0,0.0002775,8]
[329666709,1718555443172,-500.0,0.0002775,8]
[329666711,1718555443208,-500.0,0.0002775,8]
[329666712,1718555443233,-500.0,0.0002775,8]
[329666714,1718555443248,-500.0,0.0002775,8]
[329666715,1718555443260,-500.0,0.0002775,8]
[329666716,1718555443272,-500.0,0.0002775,8]
[329666717,1718555443294,-500.0,0.0002775,8]
[329666718,1718555443311,-383.15,0.0002775,8]
[329666719,1718555443340,-500.0,0.0002775,8]
[329666720,1718555443352,-500.0,0.0002775,8]
[329666721,1718555443370,-500.0,0.0002775,8]
[329666722,1718555443386,-500.0,0.0002775,8]
[329666725,1718555443485,-500.0,0.0002775,8]
[329666727,1718555443502,-364.67474478,0.0002775,8]
[329666729,1718555443512,-500.0,0.0002775,8]
[329666730,1718555443524,-500.0,0.0002775,8]
[329666732,1718555443544,-500.0,0.0002775,8]
[329666734,1718555443555,-500.0,0.0002775,8]
[329666736,1718555443573,-500.0,0.0002775,8]
[329666738,1718555443587,-2010.9871507,0.00027751,2]
[329666740,1718555443598,-5499.9139348,0.00027751,2]
[329666742,1718555443609,-38532.90383303,0.00027751,2]
[329666744,1718555443645,-1844.5612212,0.00027751,2]
[329666746,1718555443660,-384.39306398,0.00027751,2]
[329666749,1718555443716,-952.2879548,0.00027751,2]
[329666752,1718555443756,-660.38937212,0.00027751,2]
[329666756,1718555443779,-712.39833394,0.00027751,2]
[329666761,1718555443798,-263.77659971,0.00027751,2]
[329666767,1718555443822,-2386.66842282,0.00027751,2]
[329666772,1718555443833,-150.61,0.00027756,2]
[329666776,1718555443850,-500.0,0.00027759,8]
[329666782,1718555443867,-190.48349874,0.0002776,2]
[329666785,1718555443884,-1093.89505583,0.0002776,2]
[329666790,1718555443932,-415.44697743,0.0002776,2]
[329666794,1718555443959,-207.79233236,0.0002776,10]
[329666797,1718555443975,-194.34452143,0.0002776,2]
[329666801,1718555443989,-1731.14107425,0.0002776,2]
[329666804,1718555444009,-1436.10317584,0.0002776,2]
[329666808,1718555444054,-1270.18852319,0.0002776,2]
[329666810,1718555444070,-307.14978371,0.0002776,2]
[329666815,1718555444117,-5000.0,0.0002776,7]
[329666817,1718555444132,-10450.61856364,0.0002776,2]
[329666820,1718555444168,-3544.31646666,0.0002776,2]
[329666823,1718555444192,-201.12970365,0.0002776,2]
[329666826,1718555444233,-246.78969473,0.0002776,2]
[329666829,1718555444247,-1626.15549031,0.0002776,2]
[329666830,1718555444265,-536.5435371,0.0002776,2]
[329666833,1718555444285,-386.50366731,0.0002776,2]
[329666835,1718555444310,-172.54618039,0.0002776,2]
[329666837,1718555444335,-3067.91523632,0.0002776,2]
[329666840,1718555444360,-180.1145445,0.0002776,2]
[329666842,1718555444372,-238.37315842,0.0002776,2]
[329666844,1718555444384,-206.52102951,0.0002776,2]
[329666846,1718555444416,-155.5986744,0.0002776,2]
[329666848,1718555444440,-167.3482756,0.0002776,2]
[329666850,1718555444452,-155.35331114,0.0002776,2]
[329666851,1718555444464,-155.0,0.0002776,2]
[329666853,1718555444475,-600.97838434,0.0002776,2]
[329666855,1718555444487,-546.04285463,0.0002776,2]
[329666857,1718555444501,-264.4535235,0.0002776,2]
[329666860,1718555444522,-569.96267725,0.0002776,2]
[329666862,1718555444548,-155.0,0.0002776,2]
[329666864,1718555444576,-155.17194487,0.0002776,2]
[329666866,1718555444593,-786.90809948,0.0002776,2]
[329666868,1718555444606,-625.74636743,0.0002776,2]
[329666870,1718555444628,-792.99144726,0.0002776,2]
[329666872,1718555444645,-157.03118807,0.0002776,2]
[329666876,1718555444658,-806.25723157,0.0002776,2]
[329666881,1718555444685,-506.09880179,0.0002776,2]
[329666887,1718555444697,-283.8003683,0.0002776,2]
[329666894,1718555444744,-155.0,0.0002776,2]
[329666899,1718555444759,-446.80079403,0.0002776,2]
[329666905,1718555444772,-162.52861424,0.0002776,2]
[329666909,1718555444786,-205.52427433,0.0002776,2]
[329666914,1718555444798,-156.91694667,0.0002776,2]
[329666918,1718555444811,-407.62260723,0.0002776,2]
[329666921,1718555444823,-3102.76307355,0.0002776,2]
[329666924,1718555444867,-155.26192045,0.0002776,2]
[329666928,1718555444922,-163.02268496,0.0002776,2]
[329666930,1718555444944,-155.0,0.0002776,2]
[329666932,1718555444976,-833.475728,0.0002776,2]
[329666935,1718555444991,-550.46147446,0.0002776,2]
[329666937,1718555445010,-241.70358386,0.0002776,2]
[329666939,1718555445041,-343.90316993,0.0002776,2]
[329666941,1718555445059,-3201.45820767,0.0002776,2]
[329666943,1718555445094,-3709.20765049,0.0002776,2]
[329666946,1718555445132,-155.0,0.0002776,2]
[329666948,1718555445167,-307.57624095,0.0002776,2]
[329666950,1718555445184,-155.31177174,0.0002776,2]
[329666952,1718555445203,-525.50104401,0.0002776,2]
[329666953,1718555445240,-155.51523385,0.0002776,2]
[329666956,1718555445269,-13924.2704849,0.0002776,2]
[329666958,1718555445288,-9553.154996,0.0002776,2]
[329666959,1718555445309,-4017.58708988,0.0002776,2]
[329666961,1718555445344,-2010.12412169,0.0002776,2]
[329666963,1718555445399,-488.83889264,0.0002776,2]
[329666965,1718555445432,-1250.11653251,0.0002776,2]
[329666966,1718555445446,-530.24178284,0.0002776,2]
[329666968,1718555445458,-787.38158094,0.0002776,2]
[329666970,1718555445488,-9523.63571041,0.0002776,2]
[329666973,1718555445525,-14325.4,0.0002776,2]
[329666978,1718555445602,-6584.89999999,0.0002776,2]
[329666980,1718555445631,-1031.34272842,0.0002776,2]
[329667023,1718555446849,-301.13000469,0.00016406,2]
[329667024,1718555446863,-452.44526137,0.0002766,8]
[329667026,1718555446878,-2558.97473394,0.0002776,2]
[329667060,1718555447586,-4388.028549,0.0002776,2]
[329667063,1718555447612,-944.77303847,0.0002776,2]
[329667064,1718555447627,-537.38571052,0.0002776,2]
[329667066,1718555447660,-166.81395975,0.0002776,2]
[329667068,1718555447671,-500.0,0.0002776,8]
[329667069,1718555447683,-500.0,0.0002776,8]
[329667071,1718555447698,-500.0,0.0002776,8]
[329667073,1718555447711,-329.31152483,0.0002776,8]
[329667075,1718555447723,-500.0,0.0002776,8]
[329667077,1718555447751,-500.0,0.0002776,8]
[329667079,1718555447764,-150.0,0.00027761,2]
[329667081,1718555447791,-205.2720956,0.00027761,8]
[329667083,1718555447812,-500.0,0.00027761,8]
[329667085,1718555447833,-500.0,0.00027761,8]
[329667087,1718555447878,-500.0,0.00027761,8]
[329667089,1718555447889,-500.0,0.00027761,8]
[329667090,1718555447900,-500.0,0.00027761,8]
[329667092,1718555447926,-500.0,0.00027761,8]
[329667094,1718555447943,-500.0,0.00027761,8]
[329667096,1718555447979,-500.0,0.00027761,8]
[329667098,1718555448004,-500.0,0.00027761,8]
[329667101,1718555448027,-500.0,0.00027761,8]
[329667102,1718555448039,-500.0,0.00027761,8]
[329667104,1718555448059,-500.0,0.00027761,8]
[329667106,1718555448076,-500.0,0.00027761,8]
[329667107,1718555448088,-500.0,0.00027761,8]
[329667109,1718555448100,-179.52,0.00027761,8]
[329667111,1718555448111,-500.0,0.00027761,8]
[329667113,1718555448122,-500.0,0.00027761,8]
[329667115,1718555448133,-418.38522026,0.00027761,8]
[329667116,1718555448144,-500.0,0.00027761,8]
[329667118,1718555448156,-500.0,0.00027761,8]
[329667120,1718555448168,-500.0,0.00027761,8]
[329667122,1718555448186,-500.0,0.00027761,8]
[329667123,1718555448199,-500.0,0.00027761,8]
[329667124,1718555448212,-500.0,0.00027761,8]
[329667126,1718555448230,-500.0,0.00027761,8]
[329667128,1718555448250,-257.52181836,0.00027761,8]
[329667131,1718555448264,-150.0,0.00027761,8]
[329667134,1718555448276,-158.3,0.00027761,8]
[329667137,1718555448296,-500.0,0.00027761,8]
[329667143,1718555448332,-211.17423859,0.00027761,8]
[329667147,1718555448376,-500.0,0.00027761,8]
[329667150,1718555448388,-514.8,0.00027761,8]
[329667151,1718555448404,-500.0,0.00027761,8]
[329667152,1718555448432,-500.0,0.00027761,8]
[329667155,1718555448449,-500.0,0.00027761,8]
[329667158,1718555448468,-341.4,0.00027761,8]
[329667161,1718555448481,-500.0,0.00027761,8]
[329667164,1718555448508,-500.0,0.00027761,8]
[329667166,1718555448519,-500.0,0.00027761,8]
[329667168,1718555448548,-304.78,0.00027761,8]
[329667172,1718555448573,-572.32216741,0.00027761,8]
[329667174,1718555448588,-1780.03128,0.00027761,2]
[329667176,1718555448600,-500.0,0.00027761,8]
[329667179,1718555448614,-500.0,0.00027761,8]
[329667182,1718555448660,-500.0,0.00027761,8]
[329667184,1718555448673,-365.52,0.00027761,8]
[329667188,1718555448724,-500.0,0.00027761,8]
[329667190,1718555448740,-500.0,0.00027761,8]
[329667193,1718555448753,-500.0,0.00027761,8]
[329667195,1718555448765,-500.0,0.00027761,8]
[329667198,1718555448781,-500.0,0.00027761,8]
[329667202,1718555448796,-500.0,0.00027761,8]
[329667203,1718555448807,-235.64,0.00027761,8]
[329667205,1718555448821,-599.32818897,0.00027761,8]
[329667208,1718555448843,-500.0,0.00027761,8]
[329667211,1718555448865,-317.72,0.00027761,8]
[329667214,1718555448884,-527.96926358,0.00027761,8]
[329667217,1718555448907,-500.0,0.00027761,8]
[329667220,1718555448930,-500.0,0.00027761,8]
[329667222,1718555448954,-500.0,0.00027761,8]
[329667223,1718555448967,-500.0,0.00027761,8]
[329667224,1718555448980,-500.0,0.00027761,8]
[329667225,1718555448992,-500.0,0.00027761,8]
[329667226,1718555449011,-500.0,0.00027761,8]
[329667227,1718555449023,-545.97,0.00027761,8]
[329667228,1718555449035,-500.0,0.00027761,8]
[329667229,1718555449060,-500.0,0.00027761,8]
[329667230,1718555449075,-500.0,0.00027761,8]
[329667231,1718555449091,-500.0,0.00027761,8]
[329667233,1718555449119,-500.0,0.00027761,8]
[329667235,1718555449137,-500.0,0.00027761,8]
[329667238,1718555449156,-527.5,0.00027761,8]
[329667239,1718555449168,-553.675,0.00027761,8]
[329667241,1718555449185,-520.5,0.00027761,8]
[329667244,1718555449200,-520.5,0.00027761,8]
[329667245,1718555449219,-520.5,0.00027761,8]
[329667247,1718555449231,-520.5,0.00027761,8]
[329667248,1718555449245,-520.5,0.00027761,8]
[329667250,1718555449256,-520.5,0.00027761,8]
[329667252,1718555449268,-520.5,0.00027761,8]
[329667254,1718555449285,-520.5,0.00027761,8]
[329667256,1718555449303,-520.5,0.00027761,8]
[329667258,1718555449317,-520.5,0.00027761,8]
[329667259,1718555449361,-520.5,0.00027761,8]
[329667261,1718555449380,-520.5,0.00027761,8]
[329667263,1718555449420,-520.5,0.00027761,8]
[329667265,1718555449436,-520.5,0.00027761,8]
[329667267,1718555449466,-520.5,0.00027761,8]
[329667269,1718555449489,-520.5,0.00027761,8]
[329667270,1718555449507,-520.5,0.00027761,8]
[329667272,1718555449520,-520.5,0.00027761,8]
[329667273,1718555449533,-520.5,0.00027761,8]
[329667274,1718555449545,-520.5,0.00027761,8]
[329667276,1718555449562,-520.5,0.00027761,8]
[329667279,1718555449593,-520.62,0.00027761,8]
[329667281,1718555449607,-500.0,0.00027761,8]
[329667282,1718555449618,-500.0,0.00027761,8]
[329667284,1718555449633,-500.0,0.00027761,8]
[329667287,1718555449653,-500.0,0.00027761,8]
[329667289,1718555449673,-500.0,0.00027761,8]
[329667291,1718555449684,-500.0,0.00027761,8]
[329667293,1718555449697,-387.14,0.00027761,8]
[329667295,1718555449714,-500.0,0.00027761,8]
[329667298,1718555449745,-500.0,0.00027761,8]
[329667299,1718555449778,-500.0,0.00027761,8]
[329667301,1718555449791,-152.72,0.00027761,8]
[329667305,1718555449834,-500.0,0.00027761,8]
[329667307,1718555449850,-500.0,0.00027761,8]
[329667310,1718555449883,-500.0,0.00027761,8]
[329667312,1718555449907,-500.0,0.00027761,8]
[329667314,1718555449924,-500.0,0.00027761,8]
[329667316,1718555449945,-500.0,0.00027761,8]
[329667318,1718555449971,-314.16,0.00027761,8]
[329667320,1718555450008,-500.0,0.00027761,8]
[329667322,1718555450032,-500.0,0.00027761,8]
[329667323,1718555450072,-500.0,0.00027761,8]
[329667325,1718555450089,-369.01625451,0.00027761,8]
[329667327,1718555450127,-500.0,0.00027761,8]
[329667329,1718555450152,-500.0,0.00027761,8]
[329667331,1718555450165,-500.0,0.00027761,8]
[329667333,1718555450185,-500.0,0.00027761,8]
[329667336,1718555450197,-500.0,0.00027761,8]
[329667338,1718555450211,-500.0,0.00027761,8]
[329667340,1718555450245,-500.0,0.00027761,8]
[329667342,1718555450260,-500.0,0.00027761,8]
[329667343,1718555450271,-500.0,0.00027761,8]
[329667344,1718555450284,-500.0,0.00027761,8]
[329667346,1718555450313,-500.0,0.00027761,8]
[329667348,1718555450340,-500.0,0.00027761,8]
[329667350,1718555450356,-500.0,0.00027761,8]
[329667352,1718555450385,-500.0,0.00027761,8]
[329667354,1718555450405,-235.85,0.00027761,8]
[329667357,1718555450476,-249.0,0.00027762,5]
[329667358,1718555450495,-8174.83169495,0.00027762,13]
[329667360,1718555450529,-72455.17080776,0.00027762,5]
[329667363,1718555450574,-152.27,0.00027595,2]
[329667365,1718555450587,-2373.1700286,0.0002776,2]
[329667367,1718555450598,-3363.1171214,0.00027762,5]
[329667369,1718555450613,-881.21664269,0.00027762,5]
[329667371,1718555450629,-799.14076395,0.00027762,5]
[329667373,1718555450645,-369.08381778,0.00027762,5]
[329667383,1718555450806,-1354.22365978,0.00016406,2]
[329667385,1718555450853,-1649.33715953,0.00027762,5]
[329667388,1718555450882,-577.02751537,0.00027762,5]
[329667390,1718555450916,-1680.37818217,0.00027762,5]
[329667392,1718555450930,-910.50016376,0.00027762,5]
[329667394,1718555450944,-651.85793492,0.00027762,5]
[329667397,1718555450961,-25833.28259683,0.00027762,5]
[329667399,1718555450975,-24298.53059127,0.00027762,5]
[329667401,1718555450991,-671.72127843,0.00027762,5]
[329667403,1718555451006,-905.31164402,0.00027762,5]
[329667405,1718555451039,-1542.7683886,0.00027762,5]
[329667408,1718555451069,-141309.18045243,0.00027762,5]
[329667410,1718555451086,-1346.35809449,0.00027762,5]
[329667412,1718555451116,-8027.63642451,0.00027762,5]
[329667414,1718555451133,-130717.84761159,0.00027762,5]
[329667416,1718555451149,-894.62877208,0.00027762,5]
[329667418,1718555451176,-155999.52654209,0.00027762,5]
[329667420,1718555451191,-910.30952104,0.00027762,5]
[329667423,1718555451209,-582.70895161,0.00027762,5]
[329667425,1718555451229,-646.11840695,0.00027762,5]
[329667427,1718555451244,-1000.54103258,0.00027762,5]
[329667430,1718555451263,-705.0,0.00027762,5]
[329667431,1718555451284,-775.21888969,0.00027762,5]
[329667433,1718555451310,-4722.44839512,0.00027762,5]
[329667435,1718555451322,-1710.75000075,0.00027762,5]
[329667439,1718555451369,-431.96925012,0.0002761,2]
[329667441,1718555451384,-1752.76552641,0.0002761,2]